fUSD/lending_fUSD_20250206
["ID","MTS","AMOUNT","RATE_DAILY","PERIOD"]
[351979343,1738866658865,-1254.63,0.00017254,2]
[351979344,1738866658875,-2225.02,0.00017254,2]
[351979345,1738866658886,-915.99,0.00017254,2]
[351979346,1738866658897,-1226.05,0.00017254,2]
[351979347,1738866658907,-2612.35,0.00017254,2]
[351979348,1738866658917,-719.96,0.00017254,2]
[351979349,1738866658927,-500.0,0.00017254,2]
[351979350,1738866658938,-500.0,0.00017254,2]
[351979351,1738866658949,-2140.65,0.00017254,2]
[351979352,1738866658958,-1229.76,0.00017254,2]
[351979353,1738866658968,-1649.71,0.00017254,2]
[351979354,1738866658978,-3392.3,0.00017254,2]
[351979355,1738866658988,-500.0,0.00017254,2]
[351979356,1738866659000,-500.0,0.00017254,2]
[351979357,1738866659010,-1000.0,0.00017254,2]
[351979358,1738866659019,-500.0,0.00017254,2]
[351979359,1738866659029,-1017.33,0.00017254,2]
[351979360,1738866659039,-500.0,0.00017254,2]
[351979361,1738866659049,-500.0,0.00017254,2]
[351979362,1738866659058,-1539.46,0.00017254,2]
[351979363,1738866659068,-1189.78,0.00017254,2]
[351979364,1738866659078,-951.64,0.00017254,2]
[351979365,1738866659090,-2117.54,0.00017254,2]
[351979366,1738866659100,-500.0,0.00017255,2]
[351979367,1738866659110,-513.27,0.00017255,2]
[351979368,1738866659124,-500.0,0.00017255,2]
[351979369,1738866659134,-500.0,0.00017255,2]
[351979370,1738866659144,-626.52,0.00017255,2]
[351979371,1738866659154,-500.0,0.00017255,2]
[351979372,1738866659164,-523.24,0.00017255,2]
[351979373,1738866659174,-500.0,0.00017255,2]
[351979374,1738866659184,-500.0,0.00017255,2]
[351979375,1738866659194,-512.57,0.00017255,2]
[351979376,1738866659204,-500.0,0.00017255,2]
[351979377,1738866659214,-593.34,0.00017255,2]
[351979378,1738866659224,-700.92,0.00017255,2]
[351979379,1738866659234,-530.64,0.00017255,2]
[351979380,1738866659244,-500.0,0.00017255,2]
[351979381,1738866659256,-500.0,0.00017255,2]
[351979382,1738866659266,-500.0,0.00017255,2]
[351979383,1738866659276,-500.0,0.00017255,2]
[351979384,1738866659286,-374.78719865,0.00017255,2]
[351979385,1738866659296,-500.0,0.00017255,2]
[351979386,1738866659306,-618.16,0.00017255,2]
[351979387,1738866659316,-500.0,0.00017255,2]
[351979388,1738866659326,-500.0,0.00017255,2]
[351979389,1738866659336,-274.57,0.00017255,2]
[351979390,1738866659345,-500.0,0.00017255,2]
[351979391,1738866659355,-500.0,0.00017255,2]
[351979392,1738866659365,-500.0,0.00017255,2]
[351979393,1738866659375,-500.0,0.00017255,2]
[351979394,1738866659384,-500.0,0.00017255,2]
[351979395,1738866659393,-500.0,0.00017255,2]
[351979396,1738866659402,-500.0,0.00017255,2]
[351979397,1738866659412,-500.0,0.00017255,2]
[351979398,1738866659421,-500.0,0.00017255,2]
[351979399,1738866659432,-500.0,0.00017255,2]
[351979400,1738866659442,-500.0,0.00017255,2]
[351979401,1738866659452,-500.0,0.00017255,2]
[351979402,1738866659461,-500.0,0.00017255,2]
[351979403,1738866659470,-500.0,0.00017255,2]
[351979404,1738866659480,-500.0,0.00017255,2]
[351979405,1738866659490,-1141.65,0.00017255,2]
[351979406,1738866659502,-500.0,0.00017255,2]
[351979407,1738866659512,-500.0,0.00017255,2]
[351979408,1738866659522,-500.0,0.00017255,2]
[351979409,1738866659532,-500.0,0.00017255,2]
[351979410,1738866659543,-547.26,0.00017255,2]
[351979411,1738866659552,-500.0,0.00017255,2]
[351979412,1738866659563,-500.0,0.00017255,2]
[351979413,1738866659573,-500.0,0.00017255,2]
[351979414,1738866659588,-500.0,0.00017255,2]
[351979415,1738866659604,-500.0,0.00017255,2]
[351979416,1738866659617,-500.0,0.00017255,2]
[351979417,1738866659626,-500.0,0.00017255,2]
[351979418,1738866659636,-500.0,0.00017255,2]
[351979419,1738866659645,-500.0,0.00017255,2]
[351979420,1738866659655,-540.35,0.00017255,2]
[351979421,1738866659665,-371.29447044,0.00017255,2]
[351979422,1738866659676,-500.0,0.00017255,2]
[351979423,1738866659686,-500.0,0.00017255,2]
[351979424,1738866659696,-500.0,0.00017255,2]
[351979425,1738866659706,-500.0,0.00017255,2]
[351979426,1738866659716,-630.24,0.00017255,2]
[351979427,1738866659726,-500.0,0.00017255,2]
[351979428,1738866659736,-500.0,0.00017255,2]
[351979429,1738866659746,-657.81,0.00017255,2]
[351979430,1738866659756,-500.0,0.00017255,2]
[351979431,1738866659768,-500.0,0.00017255,2]
[351979432,1738866659778,-500.0,0.00017255,2]
[351979433,1738866659787,-726.72,0.00017255,2]
[351979434,1738866659796,-622.11046225,0.00017255,2]
[351979435,1738866659811,-500.0,0.00017255,2]
[351979436,1738866659821,-466.67157365,0.00017255,2]
[351979437,1738866659830,-289.43132049,0.00017255,2]
[351979438,1738866659840,-500.0,0.00017255,2]
[351979439,1738866659850,-502.89,0.00017255,2]
[351979440,1738866659861,-664.29,0.00017255,2]
[351979441,1738866659870,-847.16,0.00017255,2]
[351979442,1738866659884,-500.0,0.00017255,2]
[351979443,1738866659894,-680.74,0.00017255,2]
[351979444,1738866659905,-500.0,0.00017255,2]
[351979445,1738866659915,-500.0,0.00017255,2]
[351979446,1738866659925,-635.32,0.00017255,2]
[351979447,1738866659936,-500.0,0.00017255,2]
[351979448,1738866659946,-616.68,0.00017255,2]
[351979449,1738866659956,-942.54,0.00017255,2]
[351979450,1738866659966,-514.53,0.00017255,2]
[351979451,1738866659976,-1325.58,0.00017255,2]
[351979452,1738866659986,-616.62,0.00017255,2]
[351979453,1738866659996,-584.06,0.00017255,2]
[351979454,1738866660007,-782.48,0.00017255,2]
[351979455,1738866660016,-952.27,0.00017255,2]
[351979456,1738866660027,-1279.03,0.00017255,2]
[351979457,1738866660038,-563.5,0.00017255,2]
[351979458,1738866660049,-873.47,0.00017255,2]
[351979459,1738866660059,-500.0,0.00017255,2]
[351979460,1738866660069,-811.69,0.00017255,2]
[351979461,1738866660080,-500.0,0.00017255,2]
[351979462,1738866660090,-2078.54,0.00017255,2]
[351979463,1738866660099,-992.68,0.00017255,2]
[351979464,1738866660109,-833.73,0.00017255,2]
[351979465,1738866660119,-1083.2,0.00017255,2]
[351979466,1738866660129,-1317.18,0.00017255,2]
[351979467,1738866660138,-700.98,0.00017255,2]
[351979468,1738866660149,-2735.04,0.00017255,2]
[351979469,1738866660159,-500.0,0.00017255,2]
[351979470,1738866660169,-960.07,0.00017255,2]
[351979471,1738866660179,-589.9,0.00017255,2]
[351979472,1738866660193,-1424.1,0.00017255,2]
[351979473,1738866660203,-1138.61,0.00017255,2]
[351979474,1738866660214,-1582.06,0.00017255,2]
[351979475,1738866660226,-803.99,0.00017255,2]
[351979476,1738866660236,-722.34,0.00017255,2]
[351979477,1738866660249,-500.0,0.00017255,2]
[351979478,1738866660260,-500.0,0.00017255,2]
[351979479,1738866660271,-936.37,0.00017255,2]
[351979480,1738866660282,-1029.92,0.00017255,2]
[351979481,1738866660293,-664.0,0.00017255,2]
[351979482,1738866660303,-1836.69,0.00017255,2]
[351979483,1738866660313,-700.04,0.00017255,2]
[351979484,1738866660323,-500.0,0.00017255,2]
[351979485,1738866660338,-2524.54,0.00017255,2]
[351979486,1738866660352,-500.0,0.00017255,2]
[351979487,1738866660367,-500.0,0.00017255,2]
[351979488,1738866660382,-500.0,0.00017255,2]
[351979489,1738866660393,-500.0,0.00017255,2]
[351979490,1738866660406,-1649.27,0.00017255,2]
[351979491,1738866660420,-500.0,0.00017255,2]
[351979492,1738866660434,-843.75,0.00017255,2]
[351979493,1738866660447,-151.0,0.00017255,2]
[351979494,1738866660462,-1110.4,0.00017255,2]
[351979495,1738866660476,-1353.54,0.00017255,2]
[351979496,1738866660488,-842.77,0.00017255,2]
[351979497,1738866660500,-908.69,0.00017255,2]
[351979498,1738866660513,-587.68,0.00017255,2]
[351979499,1738866660527,-1257.73,0.00017255,2]
[351979500,1738866660541,-2630.17,0.00017255,2]
[351979501,1738866660554,-1528.25,0.00017255,2]
[351979502,1738866660568,-1242.52,0.00017255,2]
[351979503,1738866660582,-1407.68,0.00017255,2]
[351979504,1738866660597,-877.83,0.00017255,2]
[351979505,1738866660616,-1455.99,0.00017255,2]
[351979506,1738866660630,-152.15168839,0.00017255,2]
[351979507,1738866660644,-500.0,0.00017255,2]
[351979508,1738866660657,-1199.99,0.00017255,2]
[351979509,1738866660671,-500.0,0.00017255,2]
[351979510,1738866660683,-500.0,0.00017256,2]
[351979511,1738866660696,-580.86,0.00017256,2]
[351979512,1738866660709,-500.0,0.00017256,2]
[351979513,1738866660723,-1233.51,0.00017256,2]
[351979514,1738866660739,-500.0,0.00017256,2]
[351979515,1738866660754,-528.44,0.00017256,2]
[351979516,1738866660770,-500.0,0.00017256,2]
[351979517,1738866660782,-590.09,0.00017256,2]
[351979518,1738866660793,-851.34,0.00017258,2]
[351979519,1738866660809,-633.97412871,0.00017259,2]
[351979520,1738866660822,-500.0,0.00017259,2]
[351979521,1738866660838,-500.0,0.00017259,2]
[351979522,1738866660850,-500.0,0.00017259,2]
[351979523,1738866660860,-500.0,0.00017259,2]
[351979524,1738866660871,-150.0,0.00017259,2]
[351979525,1738866660883,-500.0,0.00017259,2]
[351979526,1738866660899,-500.0,0.00017259,2]
[351979527,1738866660913,-629.41,0.0001726,2]
[351979528,1738866660925,-1212.13,0.0001726,2]
[351979529,1738866660937,-2191.68,0.0001726,2]
[351979530,1738866660948,-1150.67,0.0001726,2]
[351979531,1738866660961,-1194.7,0.0001726,2]
[351979532,1738866660974,-1670.96,0.0001726,2]
[351979533,1738866660986,-2394.38,0.0001726,2]
[351979534,1738866660998,-1909.88,0.0001726,2]
[351979535,1738866661010,-879.69,0.0001726,2]
[351979536,1738866661022,-1406.63,0.0001726,2]
[351979537,1738866661035,-500.0,0.0001726,2]
[351979538,1738866661048,-1626.57,0.0001726,2]
[351979539,1738866661060,-1052.49,0.0001726,2]
[351979540,1738866661073,-2439.5,0.0001726,2]
[351979541,1738866661084,-1556.35,0.0001726,2]
[351979542,1738866661096,-1571.46,0.0001726,2]
[351979543,1738866661109,-500.0,0.0001726,2]
[351979544,1738866661121,-3154.44,0.0001726,2]
[351979545,1738866661134,-500.0,0.0001726,2]
[351979546,1738866661146,-1374.49,0.0001726,2]
[351979547,1738866661159,-781.28,0.0001726,2]
[351979548,1738866661171,-500.0,0.0001726,2]
[351979549,1738866661186,-962.38,0.0001726,2]
[351979550,1738866661198,-666.23,0.0001726,2]
[351979551,1738866661211,-500.0,0.0001726,2]
[351979552,1738866661224,-876.98,0.0001726,2]
[351979553,1738866661236,-823.01,0.0001726,2]
[351979554,1738866661248,-752.31,0.0001726,2]
[351979555,1738866661261,-500.0,0.0001726,2]
[351979556,1738866661273,-150.0,0.00017264,2]
[351979557,1738866661285,-1965.16551677,0.00017291,2]
[351979558,1738866661298,-4355.94769042,0.00017292,2]
[351979559,1738866661309,-2425.87111304,0.00017295,2]
[351979560,1738866661321,-431.4395589,0.00017312,2]
[351979561,1738866661333,-150.0,0.00017385,2]
[351979562,1738866661346,-8361.76199639,0.00017386,2]
[351979563,1738866661358,-315.37773314,0.0001739,2]
[351979564,1738866661371,-310.78647377,0.00017391,2]
[351979565,1738866661382,-500.0,0.00017391,2]
[351979566,1738866661394,-289.4687654,0.00017391,2]
[351979567,1738866661406,-500.0,0.00017391,2]
[351979568,1738866661418,-314.07325562,0.00017391,2]
[351979569,1738866661430,-500.0,0.00017391,2]
[351979570,1738866661441,-500.0,0.00017391,2]
[351979571,1738866661452,-500.0,0.00017391,2]
[351979572,1738866661463,-500.0,0.00017391,2]
[351979573,1738866661474,-411.30685956,0.00017391,2]
[351979574,1738866661485,-500.0,0.00017391,2]
[351979575,1738866661498,-500.0,0.00017391,2]
[351979576,1738866661512,-511.45,0.00017391,2]
[351979577,1738866661523,-500.0,0.00017391,2]
[351979578,1738866661535,-500.0,0.00017391,2]
[351979579,1738866661547,-500.0,0.00017391,2]
[351979580,1738866661558,-592.64,0.00017391,2]
[351979581,1738866661570,-500.0,0.00017391,2]
[351979582,1738866661582,-500.0,0.00017391,2]
[351979583,1738866661593,-500.0,0.00017391,2]
[351979584,1738866661606,-500.0,0.00017391,2]
[351979585,1738866661618,-500.0,0.00017391,2]
[351979586,1738866661630,-500.0,0.00017391,2]
[351979587,1738866661642,-500.0,0.00017391,2]
[351979588,1738866661653,-500.0,0.00017391,2]
[351979589,1738866661665,-500.0,0.00017391,2]
[351979590,1738866661676,-500.0,0.00017391,2]
[351979591,1738866661687,-500.0,0.00017391,2]
[351979592,1738866661699,-500.0,0.00017391,2]
[351979593,1738866661710,-500.0,0.00017391,2]
[351979594,1738866661723,-500.0,0.00017391,2]
[351979595,1738866661734,-500.0,0.00017391,2]
[351979596,1738866661745,-500.0,0.00017391,2]
[351979597,1738866661758,-500.0,0.00017391,2]
[351979598,1738866661772,-657.4,0.00017391,2]
[351979599,1738866661784,-1028.51,0.00017391,2]
[351979600,1738866661798,-557.23,0.00017391,2]
[351979601,1738866661813,-913.22,0.00017391,2]
[351979602,1738866661824,-500.0,0.00017391,2]
[351979603,1738866661836,-1460.61,0.00017391,2]
[351979604,1738866661849,-500.0,0.00017391,2]
[351979605,1738866661861,-942.03,0.00017391,2]
[351979606,1738866661872,-1349.04,0.00017391,2]
[351979607,1738866661885,-500.0,0.00017391,2]
[351979608,1738866661896,-2044.93,0.00017391,2]
[351979609,1738866661909,-1093.42,0.00017391,2]
[351979610,1738866661921,-1136.07,0.00017391,2]
[351979611,1738866661932,-199.169216,0.00017391,2]
[351979612,1738866661944,-500.0,0.00017391,2]
[351979613,1738866661955,-1372.49,0.00017391,2]
[351979614,1738866661966,-792.46,0.00017391,2]
[351979615,1738866661978,-500.0,0.00017391,2]
[351979616,1738866661990,-500.0,0.00017391,2]
[351979617,1738866662002,-746.98,0.00017391,2]
[351979618,1738866662014,-1643.24,0.00017391,2]
[351979619,1738866662026,-1549.95,0.00017391,2]
[351979620,1738866662037,-583.9,0.00017391,2]
[351979621,1738866662049,-942.67,0.00017391,2]
[351979622,1738866662060,-2419.41,0.00017391,2]
[351979623,1738866662072,-966.91,0.00017391,2]
[351979624,1738866662084,-808.88,0.00017391,2]
[351979625,1738866662096,-2612.15,0.00017391,2]
[351979626,1738866662108,-204.110967,0.00017391,2]
[351979627,1738866662120,-1149.7,0.00017391,2]
[351979628,1738866662131,-1041.66,0.00017391,2]
[351979629,1738866662143,-500.0,0.00017391,2]
[351979630,1738866662154,-1330.48,0.00017391,2]
[351979631,1738866662166,-1604.53,0.00017391,2]
[351979632,1738866662177,-531.94,0.00017391,2]
[351979633,1738866662189,-500.0,0.00017391,2]
[351979634,1738866662200,-1401.73,0.00017391,2]
[351979635,1738866662212,-1589.88,0.00017391,2]
[351979636,1738866662223,-850.56,0.00017391,2]
[351979637,1738866662234,-500.0,0.00017391,2]
[351979638,1738866662245,-1104.05,0.00017391,2]
[351979639,1738866662257,-5370.59,0.00017391,2]
[351979640,1738866662268,-500.0,0.00017391,2]
[351979641,1738866662279,-1453.98,0.00017391,2]
[351979642,1738866662290,-1194.2,0.00017391,2]
[351979643,1738866662302,-566.05,0.00017391,2]
[351979644,1738866662313,-1388.6,0.00017391,2]
[351979645,1738866662325,-1308.07,0.00017391,2]
[351979646,1738866662336,-500.0,0.00017391,2]
[351979647,1738866662349,-500.0,0.00017391,2]
[351979648,1738866662360,-1399.15,0.00017391,2]
[351979649,1738866662371,-500.0,0.00017391,2]
[351979650,1738866662383,-300.0,0.00017391,2]
[351979651,1738866662395,-500.0,0.00017391,2]
[351979652,1738866662406,-1254.63,0.00017391,2]
[351979653,1738866662419,-2225.02,0.00017391,2]
[351979654,1738866662433,-915.99,0.00017391,2]
[351979655,1738866662445,-1226.05,0.00017391,2]
[351979656,1738866662457,-2612.35,0.00017391,2]
[351979657,1738866662469,-719.96,0.00017391,2]
[351979658,1738866662480,-500.0,0.00017391,2]
[351979659,1738866662492,-500.0,0.00017391,2]
[351979660,1738866662503,-2140.65,0.00017391,2]
[351979661,1738866662515,-1229.76,0.00017391,2]
[351979662,1738866662527,-1649.71,0.00017391,2]
[351979663,1738866662539,-3392.3,0.00017391,2]
[351979664,1738866662550,-341.16414309,0.00017391,2]
[351979665,1738866662563,-500.0,0.00017391,2]
[351979666,1738866662585,-1000.0,0.00017391,2]
[351979667,1738866662599,-500.0,0.00017391,2]
[351979668,1738866662611,-1017.33,0.00017391,2]
[351979669,1738866662622,-500.0,0.00017391,2]
[351979670,1738866662634,-500.0,0.00017391,2]
[351979671,1738866662646,-1539.46,0.00017391,2]
[351979672,1738866662658,-1189.78,0.00017391,2]
[351979673,1738866662670,-951.64,0.00017391,2]
[351979674,1738866662681,-2117.54,0.00017391,2]
[351979675,1738866662989,-500.0,0.00017392,2]
[351979676,1738866663015,-513.27,0.00017392,2]
[351979677,1738866663026,-500.0,0.00017392,2]
[351979678,1738866663036,-500.0,0.00017392,2]
[351979679,1738866663046,-500.0,0.00017392,2]
[351979680,1738866663056,-523.24,0.00017392,2]
[351979681,1738866663066,-384.93323063,0.00017392,2]
[351979682,1738866663076,-500.0,0.00017392,2]
[351979683,1738866663087,-512.57,0.00017392,2]
[351979684,1738866663097,-500.0,0.00017392,2]
[351979685,1738866663107,-593.34,0.00017392,2]
[351979686,1738866663116,-700.92,0.00017392,2]
[351979687,1738866663126,-530.64,0.00017392,2]
[351979688,1738866663135,-500.0,0.00017392,2]
[351979689,1738866663145,-500.0,0.00017392,2]
[351979690,1738866663154,-500.0,0.00017392,2]
[351979691,1738866663164,-500.0,0.00017392,2]
[351979692,1738866663174,-500.0,0.00017392,2]
[351979693,1738866663184,-618.16,0.00017392,2]
[351979694,1738866663194,-500.0,0.00017392,2]
[351979695,1738866663203,-500.0,0.00017392,2]
[351979696,1738866663213,-500.0,0.00017392,2]
[351979697,1738866663222,-500.0,0.00017392,2]
[351979698,1738866663232,-500.0,0.00017392,2]
[351979699,1738866663242,-500.0,0.00017392,2]
[351979700,1738866663251,-500.0,0.00017392,2]
[351979701,1738866663261,-500.0,0.00017392,2]
[351979702,1738866663270,-500.0,0.00017392,2]
[351979703,1738866663280,-500.0,0.00017392,2]
[351979704,1738866663290,-500.0,0.00017392,2]
[351979705,1738866663300,-500.0,0.00017392,2]
[351979706,1738866663310,-500.0,0.00017392,2]
[351979707,1738866663321,-500.0,0.00017392,2]
[351979708,1738866663331,-408.29940623,0.00017392,2]
[351979709,1738866663341,-500.0,0.00017392,2]
[351979710,1738866663351,-500.0,0.00017392,2]
[351979711,1738866663361,-1141.65,0.00017392,2]
[351979712,1738866663371,-500.0,0.00017392,2]
[351979713,1738866663381,-500.0,0.00017392,2]
[351979714,1738866663391,-500.0,0.00017392,2]
[351979715,1738866663400,-500.0,0.00017392,2]
[351979716,1738866663410,-547.26,0.00017392,2]
[351979717,1738866663420,-500.0,0.00017392,2]
[351979718,1738866663430,-500.0,0.00017392,2]
[351979719,1738866663439,-500.0,0.00017392,2]
[351979720,1738866663449,-500.0,0.00017392,2]
[351979721,1738866663459,-500.0,0.00017392,2]
[351979722,1738866663469,-500.0,0.00017392,2]
[351979723,1738866663478,-610.83347854,0.00017392,2]
[351979724,1738866663487,-500.0,0.00017392,2]
[351979725,1738866663497,-500.0,0.00017392,2]
[351979726,1738866663508,-540.35,0.00017392,2]
[351979727,1738866663519,-500.0,0.00017392,2]
[351979728,1738866663529,-500.0,0.00017392,2]
[351979729,1738866663539,-500.0,0.00017392,2]
[351979730,1738866663548,-500.0,0.00017392,2]
[351979731,1738866663558,-630.24,0.00017392,2]
[351979732,1738866663568,-500.0,0.00017392,2]
[351979733,1738866663577,-500.0,0.00017392,2]
[351979734,1738866663588,-657.81,0.00017392,2]
[351979735,1738866663597,-500.0,0.00017392,2]
[351979736,1738866663607,-500.0,0.00017392,2]
[351979737,1738866663617,-500.0,0.00017392,2]
[351979738,1738866663626,-726.72,0.00017392,2]
[351979739,1738866663637,-500.0,0.00017392,2]
[351979740,1738866663650,-500.0,0.00017392,2]
[351979741,1738866663660,-502.89,0.00017392,2]
[351979742,1738866663669,-664.29,0.00017392,2]
[351979743,1738866663679,-847.16,0.00017392,2]
[351979744,1738866663689,-500.0,0.00017392,2]
[351979745,1738866663700,-680.74,0.00017392,2]
[351979746,1738866663710,-500.0,0.00017392,2]
[351979747,1738866663719,-500.0,0.00017392,2]
[351979748,1738866663729,-635.32,0.00017392,2]
[351979749,1738866663739,-500.0,0.00017392,2]
[351979750,1738866663749,-616.68,0.00017392,2]
[351979751,1738866663761,-942.54,0.00017392,2]
[351979752,1738866663777,-514.53,0.00017392,2]
[351979753,1738866663787,-1325.58,0.00017392,2]
[351979754,1738866663798,-616.62,0.00017392,2]
[351979755,1738866663810,-584.06,0.00017392,2]
[351979756,1738866663820,-782.48,0.00017392,2]
[351979757,1738866663830,-952.27,0.00017392,2]
[351979758,1738866663841,-1279.03,0.00017392,2]
[351979759,1738866663852,-563.5,0.00017392,2]
[351979760,1738866663862,-873.47,0.00017392,2]
[351979761,1738866663872,-500.0,0.00017392,2]
[351979762,1738866663881,-811.69,0.00017392,2]
[351979763,1738866663890,-500.0,0.00017392,2]
[351979764,1738866663900,-2078.54,0.00017392,2]
[351979765,1738866663911,-992.68,0.00017392,2]
[351979766,1738866663920,-833.73,0.00017392,2]
[351979767,1738866663929,-1083.2,0.00017392,2]
[351979768,1738866663939,-1317.18,0.00017392,2]
[351979769,1738866663948,-700.98,0.00017392,2]
[351979770,1738866663958,-2735.04,0.00017392,2]
[351979771,1738866663967,-500.0,0.00017392,2]
[351979772,1738866663977,-960.07,0.00017392,2]
[351979773,1738866663986,-589.9,0.00017392,2]
[351979774,1738866663996,-1424.1,0.00017392,2]
[351979775,1738866664006,-1138.61,0.00017392,2]
[351979776,1738866664016,-1582.06,0.00017392,2]
[351979777,1738866664027,-803.99,0.00017392,2]
[351979778,1738866664037,-722.34,0.00017392,2]
[351979779,1738866664047,-500.0,0.00017392,2]
[351979780,1738866664057,-500.0,0.00017392,2]
[351979781,1738866664068,-936.37,0.00017392,2]
[351979782,1738866664078,-1029.92,0.00017392,2]
[351979783,1738866664088,-664.0,0.00017392,2]
[351979784,1738866664098,-1836.69,0.00017392,2]
[351979785,1738866664113,-700.04,0.00017392,2]
[351979786,1738866664123,-500.0,0.00017392,2]
[351979787,1738866664134,-2524.54,0.00017392,2]
[351979788,1738866664144,-500.0,0.00017392,2]
[351979789,1738866664154,-500.0,0.00017392,2]
[351979790,1738866664164,-500.0,0.00017392,2]
[351979791,1738866664174,-500.0,0.00017392,2]
[351979792,1738866664183,-1649.27,0.00017392,2]
[351979793,1738866664193,-500.0,0.00017392,2]
[351979794,1738866664203,-843.75,0.00017392,2]
[351979795,1738866664213,-1110.4,0.00017392,2]
[351979796,1738866664223,-1353.54,0.00017392,2]
[351979797,1738866664233,-842.77,0.00017392,2]
[351979798,1738866664243,-908.69,0.00017392,2]
[351979799,1738866664255,-587.68,0.00017392,2]
[351979800,1738866664266,-1257.73,0.00017392,2]
[351979801,1738866664277,-2630.17,0.00017392,2]
[351979802,1738866664288,-1528.25,0.00017392,2]
[351979803,1738866664299,-1242.52,0.00017392,2]
[351979804,1738866664309,-1407.68,0.00017392,2]
[351979805,1738866664320,-877.83,0.00017392,2]
[351979806,1738866664331,-1455.99,0.00017392,2]
[351979807,1738866664342,-500.0,0.00017392,2]
[351979808,1738866664352,-1199.99,0.00017392,2]
[351979809,1738866664362,-500.0,0.00017392,2]
[351979810,1738866664373,-500.0,0.00017393,2]
[351979811,1738866664383,-580.86,0.00017393,2]
[351979812,1738866664393,-500.0,0.00017393,2]
[351979813,1738866664402,-1233.51,0.00017393,2]
[351979814,1738866664412,-500.0,0.00017393,2]
[351979815,1738866664422,-528.44,0.00017393,2]
[351979816,1738866664436,-500.0,0.00017393,2]
[351979817,1738866664447,-590.09,0.00017393,2]
[351979818,1738866664457,-851.34,0.00017395,2]
[351979819,1738866664468,-372.49,0.00017396,2]
[351979820,1738866664479,-500.0,0.00017396,2]
[351979821,1738866664489,-500.0,0.00017396,2]
[351979822,1738866664500,-500.0,0.00017396,2]
[351979823,1738866664513,-500.0,0.00017396,2]
[351979824,1738866664524,-436.07576067,0.00017396,2]
[351979825,1738866664536,-500.0,0.00017396,2]
[351979826,1738866664548,-629.41,0.00017397,2]
[351979827,1738866664558,-1212.13,0.00017397,2]
[351979828,1738866664569,-2191.68,0.00017397,2]
[351979829,1738866664581,-1150.67,0.00017397,2]
[351979830,1738866664592,-1194.7,0.00017397,2]
[351979831,1738866664602,-1670.96,0.00017397,2]
[351979832,1738866664612,-2394.38,0.00017397,2]
[351979833,1738866664623,-1909.88,0.00017397,2]
[351979834,1738866664633,-879.69,0.00017397,2]
[351979835,1738866664644,-1406.63,0.00017397,2]
[351979836,1738866664654,-500.0,0.00017397,2]
[351979837,1738866664664,-1626.57,0.00017397,2]
[351979838,1738866664675,-1052.49,0.00017397,2]
[351979839,1738866664685,-2439.5,0.00017397,2]
[351979840,1738866664695,-1556.35,0.00017397,2]
[351979841,1738866664705,-1571.46,0.00017397,2]
[351979842,1738866664715,-245.02671322,0.00017397,2]